Cogmind - Beta 16.1 @@@ ROGUE MODE // 2026.03.11 @ 17:18:18 Player: Ragnakor Result: Destroyed by G-47 Trooper with Particle Gun Performance ------------- Evolutions (2) 1000 Regions Visited (3) 600 Robots Destroyed (47) 235 Value Destroyed (953) 953 Prototype IDs (0) 0 Alien Tech Used (0) 0 Bonus (0) 0 TOTAL SCORE: 2788 Bonus ------- None Cogmind --------- Core Integrity 0/550 Matter 54/300 Energy 100/100 System Corruption 0% Temperature Cool (9) Movement Core (200) Ox3 Location -8/Materials Parts ------- > --- POWER (1) -------- (None) > --- PROPULSION (4) --- (None) > --- UTILITY (4) ------ Medium Storage Unit Machine Analyzer Signal Interpreter > --- WEAPON (2) ------- (None) > --- INVENTORY (10) --- Advanced Visual Processing Unit Shield Generator Tractor Beam Peak State ------------ > --- POWER ------------ Light Deuterium Engine > --- PROPULSION ------- Titanium Leg Titanium Leg Titanium Leg Titanium Leg > --- UTILITY ---------- Medium Storage Unit Compact Matter Pod Improved Sensor Array Signal Interpreter > --- WEAPON ----------- Minigun Minigun > --- INVENTORY -------- Light Deuterium Engine Light Deuterium Engine Nuclear Core Aluminum Leg Aluminum Leg Advanced Visual Processing Unit Shield Generator Tractor Beam Minigun Grenade Launcher [Rating: 31] Favorites ----------- Power Light Ion Engine Engine Light Ion Engine Propulsion Titanium Leg Leg Titanium Leg Utility Small Storage Unit Device Improved Sensor Array Storage Small Storage Unit Processor Signal Interpreter Weapon Light Assault Rifle Energy Gun Small Laser Ballistic Gun Light Assault Rifle Ballistic Cannon Light Cannon Launcher Grenade Launcher Special Melee Weapon Datajack Build | -11 -10 -9 -8 ------- Run | Yrd Mat Mat Mat Slots Evolved 4 | . . 2 2 Power . | . . . . Propulsion 2 | . . 2 . Utility 2 | . . . 2 Weapon . | . . . . Parts Attached 41 | 8 12 14 7 Power 7 | 1 2 2 2 Engine 7 | 1 2 2 2 Core . | . . . . Reactor . | . . . . Propulsion 10 | 2 4 4 . Treads . | . . . . Leg 10 | 2 4 4 . Wheel . | . . . . Hover . | . . . . Flight . | . . . . Utility 9 | 3 2 1 3 Device 4 | 2 1 . 1 Storage 3 | 1 . 1 1 Processor 2 | . 1 . 1 Hackware . | . . . . Protection . | . . . . Artifact . | . . . . Weapon 15 | 2 4 7 2 Energy Gun 1 | . 1 . . Energy Cannon . | . . . . Ballistic Gun 10 | 2 1 6 1 Ballistic Cannon 1 | . 1 . . Launcher 2 | . 1 1 . Special Weapon . | . . . . Impact Weapon . | . . . . Slashing Weapon . | . . . . Piercing Weapon . | . . . . Special Melee Weapon 1 | . . . 1 Unidentified Prototypes . | . . . . Parts Lost 23 | . 3 4 16 Power 5 | . . 2 3 Propulsion 7 | . 1 . 6 Utility 3 | . 1 . 2 Weapon 8 | . 1 2 5 Highest Loss Streak 15 | . 1 2 15 To Critical Strikes 1 | . . 1 . Average Backups 7 | 2 7 7 8 Power 1 | . 1 1 1 Propulsion 1 | . 2 1 1 Utility 1 | . . 2 3 Weapon 1 | . 1 . 1 Tool/Special . | . . . . Unused Backups 9 | . 2 2 5 Power 2 | . . 1 1 Propulsion 2 | . 2 . . Utility 4 | . . 1 3 Weapon . | . . . . Tool/Special 1 | . . . 1 Average Slot Usage (%) 97 | . 99 99 90 Engine 11 | . 14 11 8 Leg 34 | . 27 43 30 Device 3 | . 4 . 8 Storage 13 | . 14 11 17 Processor 9 | . 8 11 9 Energy Gun 1 | . 2 1 . Ballistic Gun 14 | . 15 12 15 Ballistic Cannon 6 | . 9 6 . Peak Build Rating 31 | 9 9 24 31 Average Rating 13 | 6 7 18 26 On Entrance 10 | . 9 7 24 Avg Prop Armor Cover (%) 5 | . . 5 5 Naked Turns . | . . . . Heaviest Build 23 | 13 15 21 23 Greatest Support 68 | 20 20 68 61 Greatest Overweight (x) 6 | . . . 6 Average Overweight (x) . | . . . . Largest Inventory Capacity 10 | 8 8 10 10 Average Capacity 8 | 7 8 8 10 Most Carried 10 | 3 8 10 10 Average Carried 7 | 2 7 7 8 Final Capacity 10 | 8 8 10 10 Final Carried 10 | 3 7 10 3 Class Distribution -------------------- 93% | Mutant 6% | Scavenger-Mutant Dominant Class ---------------- Mutant | -10/Materials Mutant | -9/Materials Mutant | -8/Materials Resources | -11 -10 -9 -8 ----------- Run | Yrd Mat Mat Mat Matter Collected 1255 | 326 276 570 83 Remotely 157 | . 157 . . Salvage Created 1310 | 215 424 555 116 Parts 91 | 15 24 46 6 Haulers Intercepted 2 | . 1 1 . Recyclers Shooed 1 | . 1 . . Parts Field Recycled . | . . . . Retrieved Matter . | . . . . Parts Self-Destructed . | . . . . Prevented . | . . . . Parts Restored . | . . . . Kills | -11 -10 -9 -8 ------- Run | Yrd Mat Mat Mat Combat Hostiles Destroyed 32 | . 9 18 5 Guns 13 | . 4 6 3 Cannons 7 | . 2 5 . AOE 12 | . 3 7 2 Classes Destroyed 8 | 3 3 2 . Worker 3 | 1 . . 2 Builder 2 | . . 2 . Tunneler 5 | 5 . . . Hauler 2 | . 1 1 . Recycler 3 | 1 1 1 . Swarmer 13 | . 3 7 3 Grunt 17 | . 6 9 2 Sentry 2 | . . 2 . Best Kill Streak 9 | 2 3 9 7 Combat Bots Only 9 | . 3 9 5 Max Kills in Single Turn 3 | 1 2 3 2 Gunslinging . | . . . . Exploded 2 | . 2 2 1 Melee . | . . . . Uniques/NPCs Destroyed . | . . . . Combat | -11 -10 -9 -8 -------- Run | Yrd Mat Mat Mat Hostile Shots Fired 328 | . 56 92 180 Missed 94 | . 14 25 55 Hits 234 | . 42 67 125 Melee 3 | . . . 3 Projectile 231 | . 42 67 122 Critical Strikes 5 | . 1 1 3 Damage Taken 3112 | . 570 836 1706 Core 745 | . 84 111 550 Absorbed by Shields . | . . . . Core Remaining (%) 79 | 100 66 72 . Volleys Fired 168 | 23 55 60 30 Largest 2 | 2 2 2 2 Hottest 70 | 40 70 60 55 Shots Fired 320 | 46 110 109 55 Gun 250 | 46 89 63 52 Cannon 54 | . 19 35 . Launcher 16 | . 2 11 3 Special . | . . . . Kinetic 300 | 46 104 98 52 Thermal 4 | . 4 . . Explosive 16 | . 2 11 3 Electromagnetic . | . . . . Robot Hit Streak 14 | 12 6 14 7 Robot Miss Streak 6 | 2 6 6 5 Penetration Max . | . . . . Secondary Targets . | . . . . Shots Hit Robots 175 | 32 57 57 29 Core Hits 92 | 14 25 38 15 Critical Kills . | . . . . Critical Parts Destroyed . | . . . . Critical Strikes 4 | . 3 1 . Blast 4 | . 3 1 . Melee Attacks . | . . . . Impact . | . . . . Slashing . | . . . . Piercing . | . . . . Sneak Attacks . | . . . . Combat Hostiles . | . . . . Follow-up Attacks . | . . . . Damage Inflicted 3013 | 270 725 1346 672 Guns 1510 | 263 337 493 417 Cannons 491 | . 213 278 . Explosions 999 | . 175 569 255 Melee . | . . . . Ramming 13 | 7 . 6 . Kinetic 1967 | 263 516 771 417 Thermal 34 | . 34 . . Explosive 999 | . 175 569 255 Electromagnetic . | . . . . Impact . | . . . . Slashing . | . . . . Piercing . | . . . . Highest Corruption 1 | . 1 . . Average Corruption 1 | . 1 . . Corruption Purged . | . . . . Corruption Blocked . | . . . . Overload Shots . | . . . . Overflow Damage 9 | . . 6 3 Projectiles 6 | . . 6 . Explosions 3 | . . . 3 Melee . | . . . . Knockbacks 5 | . 2 3 . Impact . | . . . . Kinetic 5 | . 2 3 . Secondary . | . . . . Self-Inflicted Damage 119 | . 13 78 28 Shots 6 | . 1 3 2 Rammed . | . . . . Targets Rammed 6 | 2 1 3 . Kicked 6 | 2 1 3 . Crushed . | . . . . Highest Temperature 59 | . 59 21 21 Average Temperature 10 | . 11 7 9 Received Heat Transfer 1155 | . 279 291 585 Siege Activations . | . . . . Martial Activations . | . . . . Shielding Activations . | . . . . Robots Disrupted . | . . . . Combat Hostiles . | . . . . Robots Corrupted . | . . . . Combat Hostiles . | . . . . Parts Fried . | . . . . Impact Corruptions . | . . . . Robots Melted . | . . . . Combat Hostiles . | . . . . Parts Melted . | . . . . Heat Transferred 75 | . 75 . . Parts Sabotaged . | . . . . Parts Stolen . | . . . . Parts Stripped . | . . . . Power Chain Reactions . | . . . . Alert | -11 -10 -9 -8 ------- Run | Yrd Mat Mat Mat Maximum Alert Level 1 | . . 1 . Low Security (%) 83 | 100 100 53 100 Level 1 16 | . . 46 . Level 2 . | . . . . Level 3 . | . . . . Level 4 . | . . . . Level 5 . | . . . . High Security . | . . . . Max Security . | . . . . Peak Influence 368 | 5 95 368 168 Initial 117 | . . 17 117 Average 84 | 2 20 188 82 Influence Increases 1131 | 35 334 601 161 Destroy 0b10 Robot/C 640 | . 180 360 100 Destroy 0b10 Robot/NC 75 | 35 10 20 10 Destroy Leader 124 | . 42 72 10 Successful Hack 47 | . 31 16 . Disable Machine 30 | . . 30 . Destroy Structure 95 | . 11 73 11 Lose Combat Pursuer 120 | . 60 30 30 Influence Decreases 1131 | 35 292 366 438 Entered New Map 185 | . . 25 160 Time Decay 749 | 35 253 311 150 Lost Part 178 | . 20 30 128 Purge Threat 19 | . 19 . . Squads Dispatched 3 | . 1 2 . Investigation 1 | . . 1 . Extermination . | . . . . Reinforcement 2 | . 1 1 . Assault . | . . . . Garrison . | . . . . Intercept . | . . . . Searches Triggered . | . . . . Construction Impeded . | . . . . Haulers Reinforced . | . . . . Active Scanning Responses . | . . . . Cargo Convoy Interrupts . | . . . . Stealth | -11 -10 -9 -8 --------- Run | Yrd Mat Mat Mat Distress Signals 2 | . 2 . . Communications Jammed . | . . . . Distress Signals . | . . . . Times Spotted 71 | . 26 27 18 Peak Tracking Total 8 | . 7 5 8 Tactical Retreats 5 | . 3 1 1 Traps | -11 -10 -9 -8 ------- Run | Yrd Mat Mat Mat Traps Triggered 2 | . 2 . . Indirectly . | . . . . Trap Hack Attempts . | . . . . Triggered . | . . . . Disarmed . | . . . . Reprogrammed . | . . . . Reused . | . . . . Traps Extracted . | . . . . Installed . | . . . . Triggered . | . . . . Machines | -11 -10 -9 -8 ---------- Run | Yrd Mat Mat Mat Machines Disabled 2 | . . 2 . Max in Single Turn 1 | . . 1 . Machines Repaired . | . . . . Machines Dismantled . | . . . . Machines Sabotaged . | . . . . Overloaded Fab Kills . | . . . . Hacking | -11 -10 -9 -8 --------- Run | Yrd Mat Mat Mat Machines Accessed 12 | . 5 6 1 Terminals 10 | . 5 4 1 Fabricators . | . . . . Repair Stations 1 | . . 1 . Recycling Units 1 | . . 1 . Scanalyzers . | . . . . Garrison Access . | . . . . Total Hacks 28 | . 13 14 1 Successful 15 | . 9 6 . Failed 13 | . 4 8 1 Catastrophic 3 | . . 2 1 Database Lockouts . | . . . . Manual . | . . . . Terminals 26 | . 13 12 1 Fabricators . | . . . . Repair Stations 1 | . . 1 . Recycling Units 1 | . . 1 . Scanalyzers . | . . . . Garrison Access . | . . . . Terminal Hacks 14 | . 9 5 . Record 1 | . 1 . . Robot Analysis 1 | . 1 . . Emergency Access Points 2 | . 1 1 . Unreport Threat 2 | . 2 . . Surveillance Status 1 | . 1 . . Patrol Status 1 | . . 1 . Transport Status 1 | . 1 . . Hauler Manifests 2 | . 1 1 . Zone Layout 3 | . 1 2 . Fabricator Hacks . | . . . . Repair Station Hacks . | . . . . Recycling Unit Hacks 1 | . . 1 . Report Inventory 1 | . . 1 . Scanalyzer . | . . . . Garrison Access Hacks . | . . . . Unauthorized Hacks . | . . . . Terminals . | . . . . Fabricators . | . . . . Repair Stations . | . . . . Recycling Units . | . . . . Scanalyzers . | . . . . Garrison Access . | . . . . Data Cores Recovered . | . . . . Used . | . . . . Hacking Detections 8 | . 3 4 1 Full Trace Events 1 | . . 1 . Feedback Events . | . . . . Feedback Blocked . | . . . . Robot Schematics Acquired . | . . . . Robots Built . | . . . . Authchips . | . . . . Time . | . . . . Total Robot Build Rating . | . . . . Part Schematics Acquired . | . . . . Parts Built . | . . . . Authchips . | . . . . Time . | . . . . Total Part Build Rating . | . . . . Part Studies Acquired . | . . . . Parts Repaired . | . . . . Time . | . . . . Parts Recycled . | . . . . Recycled Matter . | . . . . Retrieved Matter . | . . . . Retrieved Components . | . . . . Parts Scanalyzed . | . . . . Part Schematics Acquired . | . . . . Parts Damaged . | . . . . Bothacking | -11 -10 -9 -8 ------------ Run | Yrd Mat Mat Mat Used RIF Installer . | . . . . Robots Hacked . | . . . . Non-combat . | . . . . Combat . | . . . . Robot Hacks Applied . | . . . . Relay Couplers Released . | . . . . Fabnet Peak Effective % . | . . . . Robots Rewired . | . . . . Allies Hacked . | . . . . Hacks Repelled . | . . . . Allies | -11 -10 -9 -8 -------- Run | Yrd Mat Mat Mat Total Allies . | . . . . Largest Group . | . . . . Highest-Rated Group . | . . . . Highest-Rated Ally . | . . . . Total Orders . | . . . . Ally Attacks . | . . . . Total Damage . | . . . . Kills . | . . . . Allies Corrupted . | . . . . Allies Melted . | . . . . Intel | -11 -10 -9 -8 ------- Run | Yrd Mat Mat Mat Active Infowar (turns) 542 | 44 147 . 351 Sensors 345 | . . . 345 Terrain 162 | 15 147 . . Seismic 29 | 29 . . . Machine Analysis 26 | . . . 26 Robot Analysis Total 1 | . 1 . . Derelict Logs Recovered . | . . . . Drone Launches . | . . . . Drone Recoveries . | . . . . Exploration | -11 -10 -9 -8 ------------- Run | Yrd Mat Mat Mat Turns Passed 2620 | 260 1115 894 351 Spaces Moved 1607 | 158 749 527 173 Core 27 | 8 . . 19 Treads . | . . . . Legs 1580 | 150 749 527 154 Wheels . | . . . . Hover . | . . . . Flight . | . . . . Fastest Speed 50 | 50 120 120 127 Average Speed 125 | 116 120 129 141 Slowest Speed 350 | 120 120 130 350 Overloaded Moves . | . . . . Propulsion Burnouts . | . . . . Robots Hopped . | . . . . Potential Cave-ins . | . . . . Cave-ins Triggered . | . . . . Exploration Rate (%) 40 | 4 79 43 36 Regions Visited 3 Branch Regions . Pre-discovered Areas . | . . . . Known Exits Taken 2 | . 1 1 . Unknown Exits Taken 1 | 1 . . . Scrap Searched . | . . . . Spaces Dug 4 | . . . 4 Terrain Destroyed 94 | . 10 76 8 Melee . | . . . . Projectile . | . . . . AOE 94 | . 10 76 8 Terrain Rammed . | . . . . Walls Destroyed . | . . . . Machines Disabled . | . . . . Actions | -11 -10 -9 -8 --------- Run | Yrd Mat Mat Mat Total 1934 | 193 872 634 235 Wait 59 | . 42 3 14 Move 1604 | 157 748 526 173 Hop . | . . . . Pick Up 24 | 3 7 10 4 Fast Attach 9 | 7 . 1 1 Attach 17 | . 3 5 9 Detach . | . . . . Swap 28 | 1 10 15 2 Drop 19 | . 6 11 2 Fire 168 | 23 55 60 30 Melee . | . . . . Ram . | . . . . Kick 6 | 2 1 3 . Crush . | . . . . Escape Stasis . | . . . . Rewire . | . . . . Trap . | . . . . Miscellaneous . | . . . . Route ------- -11/Scrapyard -10/Materials (discovered 3 exits: *Mat x2 / [*Min]) -9/Materials (discovered 3 exits: *Mat / *Min x2) -8/Materials History --------- Turn | Location | Event 14 | -11/Scrapyard | Discovered new exit (range 15) 261 | -11/Scrapyard | Entered Materials 305 | -10/Materials | Build established: Mutant 365 | -10/Materials | Discovered new exit (range 16) 1075 | -10/Materials | Discovered new exit (range 9) 1086 | -10/Materials | Identified exit to Materials 1157 | -10/Materials | Discovered exit to Materials (range 7) 1376 | -10/Materials | Entered another Materials area 1376 | -9/Materials | Evolved 2 slots: Propulsion x2 1589 | -9/Materials | Discovered new exit (range 16) 1892 | -9/Materials | Destroyed 9 combat bots 2010 | -9/Materials | Discovered new exit (range 7) 2021 | -9/Materials | Identified exit to Mines 2171 | -9/Materials | Discovered new exit (range 10) 2181 | -9/Materials | Identified exit to Materials 2270 | -9/Materials | Entered another Materials area 2270 | -8/Materials | Evolved 2 slots: Utility x2 2585 | -8/Materials | Core integrity fell below 50% 2612 | -8/Materials | Core integrity fell below 20% 2621 | -8/Materials | Destroyed by G-47 Trooper with Particle Gun Last Messages --------------- 02568_ Critical hit (Burn: +37). 02572_ Lgt. Deuterium Engine destroyed. 02574_ Critical hit (Burn: +37). 02576_ L-31 Rogue destroyed. 02576_ Aluminum Leg destroyed. 02576_ Slug penetrates Wall. 02579_ K-01 Serf collects debris. 02581_ Slug penetrates Wall. 02583_ Minigun destroyed. 02584_ K-01 Serf collects debris. 02584_ Acquired Datajack. 02585_ Lgt. Deuterium Engine destroyed. 02587_ Penetrated by Slug. 02588_ K-01 Serf collects debris. 02589_ M-13 Machinist repairs G-47 Trooper. 02593_ Datajack destroyed. 02593_ Com. Matter Pod destroyed. 02615_ Imp. Sensor Array destroyed. 02618_ M-13 Machinist repairs G-47 Trooper. 02620_ Penetrated by Slug. Map ----- +----------------------------------------------------+ | ?????????????????????????????????????????????????? | | ?????????????????????????????????????????????????? | | ?????????????????????????????????????????????????? | | ?????????????????????????????????????????????????? | | ?????????????????????????????????????????????????? | | ?????????????????????????????????????????????????? | | ?????????????????????????????????????????????????? | | ?????????????????????????????????????????????????? | | ?????????????????????????????????????????????????? | | ?????????????????????????????????????????????????? | | ?????????????????????????????????????????????????? | | ?????????????????????????????????????????????????? | | ?????????????????????????????????????????????????? | | ?????????????????????????????????????????????????? | | ?????????????????????????????????????????????????? | | ???????????????????????????????????????#+####????? | | ??????????????????????????????????????? ?????? | | ??????????????????????????????????????? #?????? | | ??????????????????????????????????????# #?????? | | ??????????????????????????????????????+ #?????? | | ??????????????????????????????????????# #?????? | | ??????????????????????????????????????# #?????? | | ?????????????????????????????????????## ####### | | ??????????== #####+############### | | ??????????== k t h k | | ??????????== @ g a | | ??????????== g gm Y | | ?????????????######## ############## | | ????????????????????# ?????????????# /// | | ????????????????????# ??????????????# /// | | ????????????????????# ???????????????# / | | ????????????????????#????????????????# = | | ?????????????????????????????????????# = | | ????????????????????# ???????????????#*% | | ????????????????????# ??????????????#!! | | ????????????????????# ??????????????# ## | | ????????????????????# ?????????????# #? | | ????????????????????# ############## #? | | ????????????????????# #? | | ????????????????????# #? | | ????????????????????# #? | | ????????????????????# ############## #? | | ???????????????###### ########?????? #? | | ???????# ???? # | #??????? #? | | ??? ? "T" # #??????? #? | | ??? ? # """??????????+? | | ? ?""" """ """ % # """#??????????? | | """ ??""""""" = # ! """#??????????? | | ? """ ??"""" " # #??????? ?? | | ? [% +########## ? | +----------------------------------------------------+ Best States ------------- Heat Dissipation 31 Energy Generation 14 Energy Capacity 250 Matter Stores 300 Matter Capacity 450 Sight Range 16 Robot Scan Range 15 Terrain Scan Range 16 Terrain Scan Density 10 Evasion (%) 55 Item Schematics ----------------- None Robot Schematics ------------------ None Fabricated ------------ Nothing Repaired ---------- Nothing Studied --------- None Alien Tech Used ----------------- None Achievements -------------- None Challenges ------------ None Game ------ Seed GrenadePointDeconstructor Manual? 0 Play Time 00:26:05 Cumulative 20.7 hours Start 2026.03.11 @ 16:03:21 End 2026.03.11 @ 17:18:18 Sessions 1 Manual Loads 0 Difficulty Rogue Special Mode None Game No. 40 Rogue 40 Adventurer 0 Explorer 0 Win Type - Total 0 Types 0/0/0/0/0/0/0/0/0/0 Lore% 22 Gallery% 19 Achievement% 16 Wizard Run 0 Options --------- Layout 1 ASCII 0 Keyboard 0 Movement Numpad Keybinds 0 Fullscreen 1 Font 24/Smallcaps Map View 50x35 Zoom Use 0% Tactical HUD 1 Map Filters NONE Filters NONE Steam 1 RUN: b38e1111-ca1a-4d28-a361-d82cdae72eaa